bitfinex/quotes_BTCUSD_20250624
["timestamp","ask_amount","ask_price","bid_price","bid_amount"]
[1750753784619,0.01367048,105220.0,105200.0,0.07566085]
[1750753784852,0.01367048,105220.0,105210.0,0.09550186]
[1750753785112,0.01667048,105220.0,105210.0,0.09550186]
[1750753785609,0.01867048,105220.0,105210.0,0.09550186]
[1750753785836,0.01567048,105220.0,105210.0,0.09550186]
[1750753786452,0.00223842,105220.0,105210.0,0.09550186]
[1750753787043,0.00023842,105220.0,105210.0,0.09550186]
[1750753787383,0.00223842,105220.0,105210.0,0.09550186]
[1750753787632,0.01628941,105220.0,105210.0,0.09550186]
[1750753787952,0.00223842,105220.0,105210.0,0.09550186]
[1750753788635,0.00223842,105220.0,105210.0,0.11160186]
[1750753788877,0.00223842,105220.0,105210.0,0.09550186]
[1750753789097,0.00223842,105220.0,105210.0,0.12406786]
[1750753789318,0.00223842,105220.0,105210.0,0.09550186]
[1750753789533,0.00523842,105220.0,105210.0,0.09550186]
[1750753790022,0.00523842,105220.0,105210.0,0.11200186]
[1750753790675,0.0192464,105220.0,105210.0,0.09550186]
[1750753790902,0.00523842,105220.0,105210.0,0.09550186]
[1750753794647,0.01976962,105220.0,105210.0,0.09550186]
[1750753794861,0.00523842,105220.0,105210.0,0.09550186]
[1750753796628,0.01956064,105220.0,105210.0,0.09550186]
[1750753801833,0.03516064,105220.0,105210.0,0.09550186]
[1750753802448,0.05056064,105220.0,105210.0,0.09550186]
[1750753803194,0.03516064,105220.0,105210.0,0.09550186]
[1750753803393,0.03486064,105220.0,105190.0,0.0321]
[1750753803601,0.03486064,105220.0,105200.0,0.09550186]
[1750753803818,0.05116064,105220.0,105200.0,0.09550186]
[1750753804030,0.05116064,105220.0,105180.0,0.11992685]
[1750753804031,0.0164,105210.0,105180.0,0.11992685]
[1750753804297,0.0164,105210.0,105190.0,0.09550186]
[1750753804492,0.0327,105210.0,105190.0,0.09550186]
[1750753807462,0.01756064,105220.0,105190.0,0.09550186]
[1750753807463,0.03416064,105220.0,105190.0,0.09550186]
[1750753807663,0.0156,105210.0,105190.0,0.09550186]
[1750753809155,0.05216064,105220.0,105190.0,0.11120186]
[1750753810057,0.04916064,105220.0,105200.0,0.06]
[1750753810284,0.04716064,105220.0,105200.0,0.06]
[1750753810531,0.03356064,105220.0,105200.0,0.15550186]
[1750753810731,0.01756064,105220.0,105200.0,0.18720186]
[1750753811172,0.01456064,105220.0,105200.0,0.18720186]
[1750753811391,0.01656064,105220.0,105200.0,0.18720186]
[1750753811606,0.01956064,105220.0,105210.0,0.09550186]
[1750753812059,0.01956064,105220.0,105210.0,0.12710186]
[1750753812492,0.00523842,105220.0,105210.0,0.12710186]
[1750753813135,0.01684471,105220.0,105210.0,0.12710186]
[1750753813354,0.00023842,105220.0,105210.0,0.12710186]
[1750753813575,0.01446486,105220.0,105210.0,0.12710186]
[1750753813767,0.00223842,105220.0,105210.0,0.12710186]
[1750753814090,0.00523842,105220.0,105210.0,0.12710186]
[1750753815652,0.00523842,105220.0,105210.0,0.155582]
[1750753816525,0.00323842,105220.0,105210.0,0.155582]
[1750753816735,0.00523842,105220.0,105210.0,0.155582]
[1750753816961,0.00223842,105220.0,105210.0,0.155582]
[1750753817252,0.00023842,105220.0,105210.0,0.155582]
[1750753817591,0.00023842,105220.0,105210.0,0.156582]
[1750753818489,0.00023842,105220.0,105210.0,0.158582]
[1750753820514,0.00023842,105220.0,105210.0,0.24706461]
[1750753820752,5.067e-05,105220.0,105210.0,0.34706461]
[1750753821636,5.067e-05,105220.0,105210.0,0.34406461]
[1750753821901,0.0158188,105240.0,105220.0,0.0321]
[1750753822112,0.0158188,105240.0,105230.0,0.12760186]
[1750753822326,0.0158188,105240.0,105230.0,0.156082]
[1750753822537,0.0155188,105240.0,105230.0,0.156082]
[1750753824357,0.00664479,105240.0,105230.0,0.18456461]
[1750753824645,0.00015,105250.0,105240.0,0.0324]
[1750753824911,0.00015,105250.0,105240.0,0.22790186]
[1750753825832,0.00015,105250.0,105240.0,0.93170886]
[1750753826908,0.00015,105250.0,105240.0,0.96036624]
[1750753827711,0.00015,105250.0,105240.0,0.96536624]
[1750753828982,0.00015,105250.0,105240.0,0.96836624]
[1750753832420,0.00015,105250.0,105240.0,0.93970886]
[1750753833418,0.0001,105270.0,105240.0,0.90730886]
[1750753833623,0.00023834,105270.0,105260.0,0.12645186]
[1750753833826,0.00023834,105270.0,105260.0,0.98341461]
[1750753834479,0.00023834,105270.0,105260.0,0.839132]
[1750753834902,0.00023834,105270.0,105260.0,0.823932]
[1750753835111,0.01323834,105270.0,105260.0,0.131932]
[1750753835318,0.01323834,105270.0,105260.0,0.127738]
[1750753835545,0.00023834,105270.0,105260.0,0.127738]
[1750753835748,0.00023834,105270.0,105260.0,0.128738]
[1750753835971,0.00028834,105270.0,105260.0,0.128738]
[1750753836575,0.00028834,105270.0,105260.0,0.10025786]
[1750753836808,0.03058834,105270.0,105260.0,0.09645186]
[1750753837832,0.03058834,105270.0,105260.0,0.001]
[1750753839132,0.0317,105260.0,105230.0,0.02948014]
[1750753839371,0.0317,105260.0,105240.0,0.09550186]
[1750753839579,0.04582936,105260.0,105240.0,0.09550186]
[1750753839995,0.0318,105250.0,105240.0,0.09550186]
[1750753841087,0.0358,105250.0,105240.0,0.12405986]
[1750753841300,0.0358,105250.0,105240.0,0.09550186]
[1750753842278,0.03585,105250.0,105240.0,0.09550186]
[1750753842695,0.03585,105250.0,105240.0,0.12405986]
[1750753843002,0.03785,105250.0,105240.0,0.09550186]
[1750753843425,0.03785,105250.0,105240.0,0.12405986]
[1750753843752,0.03785,105250.0,105240.0,0.09550186]
[1750753844070,0.02215,105250.0,105240.0,0.09550186]
[1750753844271,0.02215,105250.0,105240.0,0.12405986]
[1750753844702,0.02215,105250.0,105240.0,0.09550186]
[1750753845684,0.02215,105250.0,105240.0,0.11765186]
[1750753845973,0.02215,105250.0,105240.0,0.09550186]
[1750753848618,0.00605,105250.0,105240.0,0.09550186]
[1750753852353,0.00605,105250.0,105240.0,0.12690186]
[1750753852566,0.00605,105250.0,105240.0,0.155382]
[1750753853434,0.00205,105250.0,105240.0,0.855382]
[1750753853650,0.00205,105250.0,105240.0,0.955382]
[1750753853871,0.00605,105250.0,105240.0,0.955382]
[1750753854090,0.00205,105250.0,105240.0,0.255382]
[1750753854514,0.00205,105250.0,105240.0,0.256382]
[1750753854734,0.00205,105250.0,105240.0,0.255382]
[1750753855215,5e-05,105250.0,105240.0,0.255382]
[1750753857287,0.00205,105250.0,105240.0,0.255382]
[1750753857712,5e-05,105250.0,105240.0,0.255382]
[1750753858869,5e-05,105250.0,105240.0,0.258382]
[1750753859155,5e-05,105250.0,105240.0,0.260382]
[1750753859826,5e-05,105250.0,105240.0,0.90050186]
[1750753860031,5e-05,105250.0,105240.0,0.93200186]
[1750753861341,5e-05,105250.0,105240.0,0.90050186]
[1750753862697,0.01645,105250.0,105240.0,0.10050186]
[1750753862892,0.01645,105250.0,105240.0,0.20050186]
[1750753863268,0.03215,105250.0,105240.0,0.20050186]
[1750753863515,0.03215,105250.0,105240.0,0.10050186]
[1750753865581,0.03215,105250.0,105240.0,0.09750186]
[1750753865906,0.03215,105250.0,105240.0,0.09850186]
[1750753867447,0.01645,105250.0,105240.0,0.09850186]
[1750753867686,0.03245,105250.0,105240.0,0.003]
[1750753867939,0.03245,105250.0,105240.0,0.001]
[1750753868185,0.03245,105250.0,105240.0,0.002]
[1750753868715,0.03245,105250.0,105240.0,0.001]
[1750753868942,0.0316,105240.0,105230.0,0.001]
[1750753870371,0.0326,105240.0,105230.0,0.001]
[1750753872012,0.001,105240.0,105230.0,0.09650186]
[1750753873421,0.0319,105240.0,105230.0,0.09650186]
[1750753873620,0.001,105240.0,105230.0,0.09650186]
[1750753874413,0.001,105240.0,105230.0,0.155782]
[1750753876138,0.001,105240.0,105230.0,0.855782]
[1750753879136,0.001,105240.0,105230.0,0.87117]
[1750753879581,0.001,105240.0,105230.0,0.84268986]
[1750753881840,0.001,105240.0,105230.0,0.14268986]
[1750753882551,0.001,105240.0,105230.0,0.20268986]
[1750753884351,0.001,105240.0,105230.0,0.20168986]
[1750753884689,0.001,105240.0,105230.0,0.90168986]
[1750753886024,0.001,105240.0,105230.0,0.87088986]
[1750753888351,0.001,105240.0,105230.0,0.17088986]
[1750753889694,0.0323,105240.0,105230.0,0.15550186]
[1750753890541,0.0323,105240.0,105230.0,0.17120186]
[1750753890967,0.0323,105240.0,105230.0,0.15550186]
[1750753891687,0.0172,105240.0,105230.0,0.15550186]
[1750753894175,0.03285,105240.0,105230.0,0.06]
[1750753895627,0.03585,105240.0,105230.0,0.06]
[1750753896828,0.13035186,105240.0,105230.0,0.06]
[1750753897043,0.13535186,105240.0,105230.0,0.06]
[1750753897408,0.12735186,105240.0,105230.0,0.06]
[1750753897618,0.03685,105240.0,105230.0,0.06]
[1750753897825,0.03985,105240.0,105230.0,0.06]
[1750753899286,0.00805,105240.0,105230.0,0.06]
[1750753902239,0.00805,105240.0,105230.0,0.076]
[1750753902454,0.02335,105240.0,105230.0,0.06]
[1750753902900,0.00805,105240.0,105230.0,0.06]
[1750753903333,0.00805,105240.0,105230.0,0.15550186]
[1750753909753,0.02455,105240.0,105230.0,0.15550186]
[1750753910306,0.00805,105240.0,105230.0,0.15550186]
[1750753910797,0.02455,105240.0,105230.0,0.15550186]
[1750753911008,0.04085,105240.0,105230.0,0.06]
[1750753921081,0.0314,105230.0,105200.0,0.07566085]
[1750753921301,0.0314,105230.0,105200.0,0.17116271]
[1750753922155,0.0314,105230.0,105200.0,0.20286271]
[1750753922359,0.0344,105230.0,105200.0,0.20300113]
[1750753923390,0.0183,105230.0,105210.0,0.09550186]
[1750753923590,0.003,105230.0,105210.0,0.09550186]
[1750753923889,0.003,105230.0,105210.0,0.12720186]
[1750753924178,0.005,105230.0,105210.0,0.12720186]
[1750753924381,0.021,105230.0,105210.0,0.11425186]
[1750753924538,0.0376,105230.0,105210.0,0.09550186]
[1750753924748,0.0326,105230.0,105210.0,0.021]
[1750753924944,0.015,105220.0,105210.0,0.021]
[1750753925249,0.06184058,105230.0,105200.0,0.00013842]
[1750753925446,0.06184058,105230.0,105200.0,0.14864028]
[1750753925680,0.06484058,105230.0,105200.0,0.12764028]
[1750753925893,0.05984058,105230.0,105200.0,0.15620928]
[1750753926393,0.001,105220.0,105200.0,0.12764028]
[1750753926786,0.001,105220.0,105210.0,0.0331]
[1750753927209,0.01565776,105220.0,105210.0,0.0166]
[1750753927366,0.01565776,105220.0,105200.0,0.12774028]
[1750753927572,0.001,105220.0,105200.0,0.12774028]
[1750753928373,0.001,105220.0,105200.0,0.09564028]
[1750753928804,0.001,105220.0,105200.0,0.12714028]
[1750753929232,0.001,105220.0,105210.0,0.0315]
[1750753929907,0.02812791,105230.0,105210.0,0.0315]
[1750753930245,0.003,105230.0,105210.0,0.12700186]
[1750753930819,0.0176728,105230.0,105210.0,0.12700186]
[1750753931016,0.0176728,105230.0,105210.0,0.14295186]
[1750753931298,0.0176728,105230.0,105210.0,0.12700186]
[1750753931513,0.0196728,105230.0,105210.0,0.12700186]
[1750753932034,0.0196728,105230.0,105200.0,0.00013842]
[1750753932035,0.0196728,105230.0,105220.0,0.12810186]
[1750753932325,0.005,105230.0,105220.0,0.12810186]
[1750753932691,0.002,105230.0,105220.0,0.12810186]
[1750753933021,0.002,105230.0,105220.0,0.18810186]
[1750753935113,0.005,105230.0,105220.0,0.18810186]
[1750753936284,0.003,105230.0,105220.0,0.20345186]
[1750753936775,0.005,105230.0,105220.0,0.20345186]
[1750753937692,0.005,105230.0,105220.0,0.15550186]
[1750753937893,0.005,105230.0,105220.0,0.17085186]
[1750753938299,0.005,105230.0,105220.0,0.15550186]
[1750753944163,0.005,105230.0,105220.0,0.17085186]
[1750753944379,0.005,105230.0,105220.0,0.15550186]
[1750753945284,0.005,105230.0,105220.0,0.06]
[1750753946233,0.02,105230.0,105220.0,0.06]
[1750753946739,0.005,105230.0,105220.0,0.06]
[1750753951606,0.005,105230.0,105220.0,0.18610186]
[1750753954126,0.005,105230.0,105220.0,0.21466486]
[1750753954557,0.005,105230.0,105220.0,0.18610186]
[1750753964628,0.005,105230.0,105220.0,0.20075186]
[1750753965048,0.005,105230.0,105220.0,0.18610186]
[1750753965634,0.005,105230.0,105220.0,0.06]
[1750753965863,0.0365,105230.0,105220.0,0.06]
[1750753966645,0.13200186,105230.0,105220.0,0.06]
[1750753969411,0.16042465,105230.0,105220.0,0.06]
[1750753977375,0.16047465,105230.0,105220.0,0.06]
[1750753979587,0.03347279,105230.0,105220.0,0.06]
[1750753981877,0.06447279,105230.0,105220.0,0.06]
[1750753982614,0.15997465,105230.0,105220.0,0.01021006]
[1750753982835,0.015,105220.0,105200.0,0.00013842]
[1750753983025,0.0306,105220.0,105200.0,0.00013842]
[1750753983238,0.015,105210.0,105200.0,0.00013842]
[1750753983443,0.0306,105210.0,105200.0,0.00013842]
[1750753984831,0.12610186,105210.0,105200.0,0.00013842]
[1750753985204,0.13010186,105210.0,105200.0,0.00013842]
[1750753986209,0.13310186,105210.0,105200.0,0.00013842]
[1750753992288,0.62590186,105210.0,105200.0,1e-08]
[1750753992695,0.59530186,105210.0,105180.0,0.0002]
[1750753992902,0.09550186,105200.0,105170.0,0.0002]
[1750753993108,0.0322,105190.0,105170.0,0.0002]
[1750753993314,0.09550186,105180.0,105170.0,0.0002]
[1750753993531,0.09550186,105180.0,105160.0,0.07566085]
[1750753993532,0.12740186,105180.0,105160.0,0.07566085]
[1750753993751,0.0161,105170.0,105150.0,0.0157]
[1750753994201,0.12680186,105170.0,105150.0,0.0002]
[1750753995025,0.12680186,105170.0,105150.0,0.00066141]
[1750753995179,0.13280186,105170.0,105150.0,0.00066141]
[1750753995936,0.13580186,105170.0,105150.0,0.00066141]
[1750753997455,0.10450186,105170.0,105150.0,0.03256141]
[1750753997885,0.028586,105160.0,105150.0,0.03256141]
[1750753998310,0.10450186,105170.0,105150.0,0.03256141]
[1750753998529,0.028587,105160.0,105150.0,0.00066141]
[1750753999219,0.028587,105160.0,105150.0,0.01586141]
[1750753999435,0.030587,105160.0,105150.0,0.00066141]
[1750754000886,0.15788886,105160.0,105150.0,0.00066141]
[1750754001632,0.17141468,105160.0,105150.0,0.00066141]
[1750754002498,0.18855615,105160.0,105150.0,0.00066141]
[1750754002733,0.17141468,105160.0,105150.0,0.00066141]
[1750754003915,0.13961468,105160.0,105120.0,0.0163]
[1750754004171,0.0151,105140.0,105120.0,8.791e-05]
[1750754004377,0.12680186,105140.0,105120.0,8.791e-05]
[1750754004995,0.028596,105130.0,105120.0,8.791e-05]
[1750754005488,0.028596,105130.0,105120.0,0.00208791]
[1750754005727,0.028596,105130.0,105120.0,0.03378791]
[1750754006395,0.50832582,105160.0,105120.0,0.12928977]
[1750754006621,0.60382768,105160.0,105140.0,0.0328]
[1750754007104,0.02859,105150.0,105130.0,0.0328]
[1750754008278,0.02703,105150.0,105130.0,0.0328]
[1750754009128,0.02703,105150.0,105140.0,0.06]
[1750754009719,0.05546317,105150.0,105140.0,0.06]
[1750754010506,0.07176317,105150.0,105140.0,0.06]
[1750754010926,0.18296503,105150.0,105140.0,0.06]
[1750754011125,0.18296503,105150.0,105120.0,0.03198791]
[1750754011524,0.05546317,105150.0,105130.0,0.0313]
[1750754013408,0.05546317,105150.0,105140.0,0.0315]
[1750754015825,0.05546317,105150.0,105140.0,0.0164]
[1750754016888,0.18226503,105150.0,105130.0,0.0436]
[1750754017096,0.18226503,105150.0,105120.0,0.03128791]
[1750754019824,0.12580186,105140.0,105120.0,8.791e-05]
[1750754021452,0.12580186,105140.0,105120.0,0.00208791]
[1750754022777,0.0319,105130.0,105120.0,0.00108791]
[1750754022890,0.12740186,105130.0,105120.0,0.00108791]
[1750754023305,0.12740186,105130.0,105120.0,8.791e-05]
[1750754024457,0.62020186,105130.0,105120.0,8.791e-05]
[1750754027593,0.0313,105120.0,105090.0,0.0002]
[1750754027803,0.0313,105120.0,105070.0,0.0202]
[1750754027804,5.53933986,105110.0,105080.0,0.0315]
[1750754028011,0.12630186,105110.0,105080.0,0.0315]
[1750754028479,0.028606,105100.0,105080.0,0.0315]
[1750754028680,0.09550186,105090.0,105070.0,0.05168793]
[1750754028889,0.12720186,105090.0,105070.0,0.02028793]
[1750754029106,0.62720186,105090.0,105070.0,0.02028793]
[1750754029314,5.54023986,105090.0,105070.0,0.02028793]
[1750754029525,0.12720186,105090.0,105070.0,0.02028793]
[1750754029734,0.62720186,105090.0,105070.0,0.02028793]
[1750754029940,5.54223986,105090.0,105070.0,0.02028793]
[1750754030146,0.12920186,105090.0,105070.0,0.02028793]
[1750754030353,0.62920186,105090.0,105070.0,0.02028793]
[1750754030588,0.0162,105080.0,105070.0,0.02028793]
[1750754030800,0.11170186,105080.0,105070.0,0.02028793]
[1750754033334,0.09550186,105080.0,105070.0,0.02028793]
[1750754034359,0.12430026,105080.0,105070.0,0.02915056]
[1750754034568,0.12430026,105080.0,105070.0,0.05288793]
[1750754034738,0.12430026,105080.0,105070.0,0.06174585]
[1750754034920,0.0287984,105080.0,105070.0,0.06174585]
[1750754035272,0.552806,105100.0,105070.0,0.06174585]
[1750754035478,0.09550186,105090.0,105070.0,0.06174585]
[1750754035917,0.09550186,105090.0,105070.0,0.06174489]
[1750754036762,0.11190186,105090.0,105070.0,0.02914489]
[1750754036994,0.12750186,105090.0,105070.0,0.02914489]
[1750754037818,0.12750186,105090.0,105070.0,0.02028793]
[1750754038303,0.15550784,105090.0,105070.0,0.02028793]
[1750754038753,0.15750784,105090.0,105070.0,0.02028793]
[1750754040700,0.15750784,105090.0,105070.0,0.03931793]
[1750754040911,0.0166,105080.0,105070.0,0.02028793]
[1750754041130,5.54143986,105080.0,105070.0,0.02914089]
[1750754041340,0.0329,105070.0,105040.0,0.0323]
[1750754041554,0.11210186,105060.0,105030.0,0.0323]
[1750754041770,0.12840186,105060.0,105030.0,0.0323]
[1750754041989,0.14128182,105060.0,105030.0,0.0323]
[1750754042206,0.02862,105050.0,105030.0,0.0323]
[1750754042427,0.12412186,105050.0,105020.0,0.0156]
[1750754042646,0.12412186,105050.0,105020.0,0.0312]
[1750754043274,0.14022186,105050.0,105020.0,0.0312]
[1750754043480,0.15552186,105050.0,105020.0,0.0312]
[1750754043687,0.14022186,105050.0,105020.0,0.0312]
[1750754043905,0.12412186,105050.0,105020.0,0.0312]
[1750754044835,0.12412186,105050.0,105030.0,0.0311]
[1750754045067,0.12412186,105050.0,105040.0,0.0311]
[1750754045068,0.02862,105050.0,105040.0,0.0311]
[1750754045970,0.01287996,105060.0,105050.0,0.0308]
[1750754046196,0.04149396,105060.0,105050.0,0.0308]
[1750754046411,0.028614,105060.0,105050.0,0.0308]
[1750754046866,0.028614,105060.0,105050.0,0.0908]
[1750754047357,0.4928,105070.0,105060.0,0.032]
[1750754047605,0.521411,105070.0,105060.0,0.032]
[1750754048883,0.521461,105070.0,105060.0,0.032]
[1750754049300,0.53436529,105070.0,105060.0,0.032]
[1750754049737,0.53736529,105070.0,105060.0,0.032]
[1750754050234,0.53836529,105070.0,105060.0,0.032]
[1750754050440,0.53436529,105070.0,105060.0,0.032]
[1750754050648,0.53736529,105070.0,105060.0,0.032]
[1750754050797,0.54236529,105070.0,105060.0,0.032]
[1750754051230,0.53936529,105070.0,105060.0,0.032]
[1750754051544,0.53436529,105070.0,105060.0,0.032]
[1750754051989,0.53436529,105070.0,105050.0,0.06]
[1750754051990,0.53736529,105070.0,105050.0,0.06]
[1750754052194,0.53736529,105070.0,105050.0,0.0756]
[1750754052398,0.53736529,105070.0,105050.0,0.0918]
[1750754052808,0.53936529,105070.0,105050.0,0.0918]
[1750754053137,0.53636529,105070.0,105050.0,0.0918]
[1750754053338,0.53436529,105070.0,105050.0,0.0918]
[1750754053548,0.53836529,105070.0,105050.0,0.0918]
[1750754054286,0.63386715,105070.0,105050.0,0.10955291]
[1750754054496,0.63386715,105070.0,105050.0,0.09395291]
[1750754055150,0.64926715,105070.0,105050.0,0.07775291]
[1750754056363,0.64926715,105070.0,105050.0,0.07778502]
[1750754056567,0.64926715,105070.0,105050.0,0.07778504]
[1750754056777,0.66516715,105070.0,105050.0,0.07778504]
[1750754057963,0.66516715,105070.0,105050.0,0.06]
[1750754059353,0.63386715,105070.0,105050.0,0.0911]
[1750754061059,0.63386715,105070.0,105050.0,0.06]
[1750754061650,0.64996715,105070.0,105050.0,0.06]
[1750754061832,0.66546715,105070.0,105050.0,0.06]
[1750754062277,0.11130186,105060.0,105050.0,0.06]
[1750754062477,0.12680186,105060.0,105020.0,0.11160186]
[1750754062686,0.12680186,105060.0,105030.0,0.0314]
[1750754063934,0.12680186,105060.0,105020.0,0.0153]
[1750754063935,0.11100186,105060.0,105020.0,0.0153]
[1750754064144,0.0158,105050.0,105020.0,0.1316]
[1750754064354,0.11130186,105050.0,105020.0,0.1316]
[1750754065831,0.09550186,105050.0,105020.0,0.1316]
[1750754066593,0.09550186,105050.0,105030.0,0.0317]
[1750754067847,0.09550186,105050.0,105030.0,0.0337]
[1750754068048,0.09550186,105050.0,105030.0,0.0182]
[1750754068642,0.09550186,105050.0,105030.0,0.0192]
[1750754069888,0.11190186,105050.0,105030.0,0.003]
[1750754070113,0.0192,105040.0,105030.0,0.003]
[1750754071129,0.0192,105040.0,105030.0,0.001]
[1750754071459,0.0192,105040.0,105030.0,0.00146189]
[1750754071992,0.01925,105040.0,105030.0,0.00146189]
[1750754072631,0.01925,105040.0,105030.0,0.00646189]
[1750754074085,0.01925,105040.0,105030.0,0.00546189]
[1750754075170,0.01925,105040.0,105030.0,0.00394189]
[1750754075591,0.01925,105040.0,105030.0,0.003]
[1750754076157,0.00205,105040.0,105030.0,0.003]
[1750754076492,0.00205,105040.0,105030.0,0.0323]
[1750754076682,0.00405,105040.0,105030.0,0.0323]
[1750754076894,0.02862,105060.0,105030.0,0.09650186]
[1750754077095,5e-05,105070.0,105060.0,0.0308]
[1750754077293,5e-05,105070.0,105060.0,0.12630186]
[1750754078109,5e-05,105070.0,105060.0,0.18630186]
[1750754080261,5e-05,105070.0,105060.0,0.219782]
[1750754080467,5e-05,105070.0,105060.0,0.319782]
[1750754080767,5e-05,105070.0,105060.0,0.323782]
[1750754081210,5e-05,105070.0,105060.0,0.319782]
[1750754081793,5e-05,105100.0,105060.0,0.288982]
[1750754082135,5e-05,105100.0,105090.0,0.0316]
[1750754082347,5e-05,105100.0,105090.0,0.12710186]
[1750754083302,0.00051067,105100.0,105090.0,0.12710186]
[1750754083705,0.00051067,105100.0,105090.0,0.12810186]
[1750754091181,0.00051067,105100.0,105090.0,0.001]
[1750754100472,0.03161067,105100.0,105090.0,0.001]
[1750754100716,0.0311,105090.0,105060.0,0.0761]
[1750754100969,0.0311,105090.0,105060.0,0.18780186]
[1750754101591,0.12741253,105100.0,105060.0,0.18780186]
[1750754102221,0.0191,105090.0,105060.0,0.18780186]
[1750754102765,0.0221,105090.0,105060.0,0.18780186]
[1750754102985,0.0181,105090.0,105060.0,0.18780186]
[1750754103437,0.0151,105090.0,105060.0,0.18780186]
[1750754103671,0.003,105090.0,105070.0,0.12640186]
[1750754103927,0.003,105090.0,105080.0,0.0304]
[1750754104139,0.003,105090.0,105080.0,0.12590186]
[1750754104935,0.003,105090.0,105080.0,0.09550186]
[1750754105191,0.003,105090.0,105070.0,0.0316]
[1750754105423,0.008,105090.0,105070.0,0.12710186]
[1750754105678,0.003,105090.0,105070.0,0.12710186]
[1750754106889,0.00051067,105100.0,105070.0,0.12710186]
[1750754107128,0.01621067,105100.0,105070.0,0.12710186]
[1750754107389,0.003,105090.0,105070.0,0.12710186]
[1750754107935,0.012441,105120.0,105110.0,0.0312]
[1750754108215,0.0001,105140.0,105110.0,0.0312]
[1750754108484,0.0001,105140.0,105110.0,0.25190511]
[1750754108747,0.0001,105140.0,105130.0,0.0312]
[1750754109023,0.0001,105140.0,105130.0,0.12670186]
[1750754110349,0.0001,105140.0,105130.0,0.12870186]
[1750754110795,0.0001,105140.0,105130.0,0.13070186]
[1750754111196,0.0001,105140.0,105130.0,0.15949058]
[1750754113126,0.00015,105140.0,105130.0,0.15749058]
[1750754113326,0.01021303,105180.0,105150.0,0.0154]
[1750754113561,0.01021303,105180.0,105160.0,0.11150186]
[1750754113562,0.00013846,105180.0,105160.0,0.11150186]
[1750754113819,0.00013846,105180.0,105170.0,0.12690186]
[1750754114049,0.00013846,105180.0,105170.0,0.09550186]
[1750754114951,0.00313846,105180.0,105170.0,0.09550186]
[1750754115461,0.00813846,105180.0,105170.0,0.09550186]
[1750754115698,0.00013846,105180.0,105170.0,0.09550186]
[1750754116153,0.00413846,105180.0,105170.0,0.09550186]
[1750754116982,0.00418846,105180.0,105170.0,0.09550186]
[1750754123145,0.00418846,105180.0,105170.0,0.12740186]
[1750754124672,0.00418846,105180.0,105170.0,0.09550186]
[1750754127091,0.00418846,105180.0,105160.0,0.02015]
[1750754127301,0.01998846,105180.0,105160.0,0.11565186]
[1750754128122,0.00018846,105180.0,105160.0,0.11565186]
[1750754128676,0.00318846,105180.0,105160.0,0.11565186]
[1750754130528,0.00318846,105180.0,105170.0,0.09550186]
[1750754131716,0.00018846,105180.0,105170.0,0.09550186]
[1750754131938,0.00318846,105180.0,105170.0,0.09550186]
[1750754139113,0.01938846,105180.0,105160.0,0.028576]
[1750754139358,0.03538846,105180.0,105140.0,0.09146085]
[1750754139599,0.03538846,105180.0,105150.0,0.12408186]
[1750754141027,0.03538846,105180.0,105150.0,0.15578186]
[1750754141549,0.03238846,105180.0,105150.0,0.15578186]
[1750754142052,0.03538846,105180.0,105150.0,0.12720186]
[1750754142305,0.03538846,105180.0,105150.0,0.15578186]
[1750754142306,0.03238846,105180.0,105150.0,0.15578186]
[1750754142548,0.03538846,105180.0,105150.0,0.15578186]
[1750754142788,0.00318846,105180.0,105150.0,0.15578186]
[1750754143638,0.00318846,105180.0,105160.0,0.06]
[1750754143885,0.00318846,105180.0,105160.0,0.15550186]
[1750754144147,0.01908846,105180.0,105160.0,0.15550186]
[1750754144836,0.01608846,105180.0,105160.0,0.15550186]
[1750754145072,0.01908846,105180.0,105160.0,0.15550186]
[1750754146620,0.00318846,105180.0,105170.0,0.09550186]
[1750754146856,0.00318846,105180.0,105160.0,0.0913]
[1750754147126,0.00318846,105180.0,105160.0,0.15550186]
[1750754148026,0.01898846,105180.0,105160.0,0.15550186]
[1750754149040,0.03518846,105180.0,105160.0,0.06]
[1750754149286,0.0324,105170.0,105160.0,0.06]
[1750754150752,0.0324,105170.0,105160.0,0.07906]
[1750754151003,0.0324,105170.0,105160.0,0.06]
[1750754151507,0.0334,105170.0,105160.0,0.06]
[1750754152208,0.0334,105170.0,105160.0,0.061]
[1750754152677,0.0174,105170.0,105160.0,0.061]
[1750754153634,0.01745,105170.0,105160.0,0.061]
[1750754156015,0.03365,105170.0,105160.0,0.061]
[1750754164528,0.12915186,105170.0,105160.0,0.04279114]
[1750754164748,0.12915186,105170.0,105160.0,0.02530115]
[1750754165170,0.12815186,105170.0,105160.0,0.02430115]
[1750754165414,0.0161,105160.0,105140.0,0.07566085]
[1750754165871,0.04462239,105160.0,105140.0,0.07566085]
[1750754166091,0.0161,105160.0,105140.0,0.07566085]
[1750754166307,0.03735,105170.0,105140.0,0.20246271]
[1750754166531,0.03635,105170.0,105140.0,0.20246271]
[1750754166743,0.0161,105160.0,105140.0,0.17116271]
[1750754167401,0.03625,105170.0,105140.0,0.17116271]
[1750754167629,0.03125,105170.0,105140.0,0.20256271]
[1750754167853,0.03525,105170.0,105140.0,0.20256271]
[1750754168064,0.03725,105170.0,105140.0,0.20256271]
[1750754168274,0.03325,105170.0,105140.0,0.20256271]
[1750754168478,0.002,105160.0,105140.0,0.20256271]
[1750754168886,0.03125,105170.0,105140.0,0.20256271]
[1750754169514,0.03325,105170.0,105140.0,0.20256271]
[1750754170355,0.03825,105170.0,105140.0,0.20256271]
[1750754172942,0.02305,105170.0,105140.0,0.20256271]
[1750754173153,0.00705,105170.0,105160.0,0.0325]
[1750754173353,0.00705,105170.0,105160.0,0.0166]
[1750754173762,0.00705,105170.0,105150.0,0.0325]
[1750754173968,0.00205,105170.0,105150.0,0.12800186]
[1750754174168,0.00205,105170.0,105160.0,0.0315]
[1750754174349,0.00705,105170.0,105160.0,0.0315]
[1750754174548,0.00205,105170.0,105160.0,0.0315]
[1750754174756,5e-05,105170.0,105160.0,0.0315]
[1750754175217,0.00705,105170.0,105160.0,0.12700186]
[1750754175631,0.00505,105170.0,105160.0,0.12700186]
[1750754176590,5e-05,105170.0,105160.0,0.18700186]
[1750754177021,0.00205,105170.0,105160.0,0.06]